Cogmind - Beta 9.6 @@@ ROGUE MODE // 2020.08.04 @ 09:10:34 Player: Alexbot Result: Destroyed by G-73 Enforcer with Heavy Laser Performance ------------- Evolutions (9) 4500 Regions Visited (31) 6200 Robots Destroyed (321) 1605 Value Destroyed (16062) 16062 Prototype IDs (97) 1940 Alien Tech Used (14) 2800 Bonus (17662) 17662 TOTAL SCORE: 50769 Bonus ------- Triggered Max Security 2000 High Alert Combat Kills 2678 Follower Combat Kills 1696 Network Hubs Disabled 200 Aligned with FarCom 300 Met Data Miner 300 Destroyed Z-Imprinter 1000 Met Warlord at Base 500 MAIN.C Attacked Warlord 500 Built Enhanced Grunts 300 Met R17 at Cetus 500 Used Core Reset Matrix 3000 Scanned by Researcher 500 Pursued by Intercept 1000 Met Sigix 2000 Activated Exoskeleton 3000 Friendly Fire -1812 Cogmind --------- Core Integrity 0/1600 Matter 96/425 Energy 100/100 System Corruption 11% Temperature Cool (18) Movement Core (50) Location -1/Access Parts ------- > --- POWER (1) -------- (None) > --- PROPULSION (4) --- (None) > --- UTILITY (15) ----- (None) > --- WEAPON (5) ------- (None) > --- INVENTORY (6) ---- Matter Drive Heavy Hardcell Cannon Core Stripper Peak State ------------ > --- POWER ------------ Compact Particle Reactor > --- PROPULSION ------- Combat Linear Gravjet Combat Linear Gravjet Combat Linear Gravjet Combat Linear Gravjet > --- UTILITY ---------- Large Storage Unit Large Storage Unit Large Storage Unit Large Storage Unit Large Storage Unit Advanced Energy Well Experimental Signal Interpreter Experimental Terrain Scan Processor Improved Utility Shielding System Mapper System Mapper Ghost Barrier Improved System Restoration Module > --- WEAPON ----------- Long-range Phase Cannon Core Stripper Sigix Broadsword > --- INVENTORY -------- Experimental Sensor Array Experimental Terrain Scanner Quantum Capacitor Experimental Transmission Jammer Improved Utility Shielding Experimental Weapon Shielding SHELL Armor EM Dispersion Field Integrity Redistributor Plasma Storm Core Cannon Heavy Hardcell Cannon Mini Smartbomb Launcher Sigix Containment Pod Sigix Containment Pod [Rating: 194] Favorites ----------- Power Micro Fission Core Engine Improved Deuterium Engine Power Core Micro Fission Core Reactor Compact Particle Reactor Propulsion Combat Gravmag System Treads Light Treads Leg Aluminum Leg Wheel Armored Huge Wheel Hover Unit Combat Gravmag System Utility Large Storage Unit Device Microactuators Storage Large Storage Unit Processor Experimental Signal Interpreter Hackware Makeshift Hacking Suite Protection Improved Utility Shielding Artifact Phase Redirector Weapon Phasing Sabre Energy Gun Heavy Beamcaster Energy Cannon Heavy Particle Cannon Ballistic Gun Light Assault Rifle Ballistic Cannon Heavy Gauss Cannon Launcher Guided Missile Launcher Special Weapon Plasma Cutter Impact Weapon Core Stripper Slashing Weapon Phasing Sabre Piercing Weapon Lance Build | -11 -10 -10 -10 -9 -8 -7 -7 -7 -7 -6 -6 -6 -6 -6 -5 -5 -5 -5 -5 -5 -4 -4 -4 -4 -3 -3 -3 -2 -2 -2 -1 ------- Run | Scr Mat Min Exi Min Mat Fac Low Low Dat Pro Fac Low Zio Dee Pro Fac Ext Cet Arc Hub Fac Upp Upp War Pro Res Qua Res Tes Sec Acc Slots Evolved 18 | . . . . . 4 2 . . . . 2 . . . . 2 . . . . 2 . . . . 2 . 2 . . 2 Power . | . . . . . . . . . . . . . . . . . . . . . . . . . . . . . . . . Propulsion 2 | . . . . . . . . . . . 1 . . . . 1 . . . . . . . . . . . . . . . Utility 13 | . . . . . 4 2 . . . . 1 . . . . 1 . . . . 2 . . . . 1 . . . . 2 Weapon 3 | . . . . . . . . . . . . . . . . . . . . . . . . . . 1 . 2 . . . Parts Attached 475 | . . 2 1 2 24 15 9 1 15 10 41 5 7 15 2 61 5 3 4 6 53 2 . 6 7 62 25 1 41 38 12 Power 23 | . . . . . 3 1 . . 1 1 4 . . 1 . 2 . . . . 4 . . . . 4 . . 1 . 1 Engine 7 | . . . . . 2 1 . . . 1 3 . . . . . . . . . . . . . . . . . . . . Core 8 | . . . . . 1 . . . . . 1 . . . . 2 . . . . 4 . . . . . . . . . . Reactor 8 | . . . . . . . . . 1 . . . . 1 . . . . . . . . . . . 4 . . 1 . 1 Propulsion 71 | . . . . . 5 1 3 . 3 . 8 . . . . 14 1 . . . 16 . . 1 . 6 4 . 9 . . Treads 1 | . . . . . 1 . . . . . . . . . . . . . . . . . . . . . . . . . . Leg 13 | . . . . . 4 1 2 . 2 . 4 . . . . . . . . . . . . . . . . . . . . Wheel 2 | . . . . . . . . . 1 . . . . . . . . . . . . . . . . 1 . . . . . Hover 55 | . . . . . . . 1 . . . 4 . . . . 14 1 . . . 16 . . 1 . 5 4 . 9 . . Flight . | . . . . . . . . . . . . . . . . . . . . . . . . . . . . . . . . Utility 235 | . . . . . 9 5 4 1 5 3 16 3 3 7 . 34 4 3 4 6 20 1 . 4 4 26 18 . 21 28 6 Device 133 | . . . . . 3 2 3 . 2 . 6 3 1 2 . 23 4 . . 4 13 1 . . . 18 13 . 10 22 3 Storage 33 | . . . . . 2 . . . 2 1 1 . 2 2 . 3 . . . 1 2 . . 3 1 3 1 . 4 4 1 Processor 12 | . . . . . 1 2 1 1 . . 3 . . . . 1 . . . . 1 . . . . 1 . . . 1 . Hackware 16 | . . . . . 1 . . . . 1 1 . . . . . . . 3 . . . . 1 2 3 1 . 3 . . Protection 40 | . . . . . 2 1 . . 1 1 5 . . 3 . 7 . 3 1 1 4 . . . 1 1 2 . 4 1 2 Artifact 1 | . . . . . . . . . . . . . . . . . . . . . . . . . . . 1 . . . . Weapon 146 | . . 2 1 2 7 8 2 . 6 6 13 2 4 7 2 11 . . . . 13 1 . 1 3 26 3 1 10 10 5 Energy Gun 35 | . . . 1 . 1 1 . . 1 2 3 . 1 4 . . . . . . 2 . . . 1 9 1 . 4 3 1 Energy Cannon 20 | . . . . . 2 . . . 4 . 2 . . . . 1 . . . . 3 . . . . 2 . . 3 1 2 Ballistic Gun 9 | . . 1 . 2 3 1 . . . . 1 . 1 . . . . . . . . . . . . . . . . . . Ballistic Cannon 17 | . . . . . . . . . . . . . . . . 1 . . . . 4 . . . 1 9 . . 2 . . Launcher 29 | . . 1 . . . 2 1 . . 3 4 2 1 2 1 4 . . . . 1 1 . . 1 1 . 1 . 2 1 Special Weapon 2 | . . . . . 1 . . . . . 1 . . . . . . . . . . . . . . . . . . . . Impact Weapon 2 | . . . . . . . . . . . . . . . . . . . . . . . . . . . . . . 2 . Slashing Weapon 30 | . . . . . . 4 1 . 1 1 2 . 1 1 1 3 . . . . 3 . . 1 . 5 2 . 1 2 1 Piercing Weapon 2 | . . . . . . . . . . . . . . . . 2 . . . . . . . . . . . . . . . Special Melee Weapon . | . . . . . . . . . . . . . . . . . . . . . . . . . . . . . . . . Unidentified Prototypes 40 | . . . . . . 2 1 . 3 . 1 . 1 6 . 2 . 1 . . 1 . . 3 . 3 3 . 8 5 . Parts Lost 93 | . . . . . 8 2 2 1 3 7 17 3 . 3 . 6 1 . . 2 9 . . . 1 10 1 . 1 2 14 Power 12 | . . . . . . . . . 1 1 2 . . 1 . 1 . . . . 1 . . . . 3 . . . . 2 Propulsion 17 | . . . . . 3 1 1 . 2 . 2 1 . . . 1 . . . 1 1 . . . . 2 . . . . 2 Utility 39 | . . . . . 1 . 1 1 . 3 7 1 . 2 . 4 1 . . 1 6 . . . . 2 1 . 1 1 6 Weapon 25 | . . . . . 4 1 . . . 3 6 1 . . . . . . . . 1 . . . 1 3 . . . 1 4 Highest Loss Streak 7 | . . . . . 3 2 2 1 3 4 4 2 . 2 . 2 1 . . 1 5 . . . 1 3 1 . 1 1 7 Average Slot Usage (%) 87 | . 85 85 80 78 87 90 96 85 85 90 89 78 82 83 86 85 92 98 100 99 91 89 89 93 93 88 90 82 83 85 63 Engine 2 | . 14 14 14 14 7 7 7 7 3 1 4 . . . . . . . . . . . . . . . . . . . . Core 2 | . . . . . 1 . . . . . 1 6 6 1 . 3 5 5 5 5 4 5 5 5 5 1 . . . . . Reactor 1 | . . . . . . . . . 2 4 . . . 3 6 1 . . . . . . . . . 2 4 4 4 4 2 Leg 4 | . 28 28 28 28 14 14 14 15 14 15 8 . . . . . . . . . . . . . . . . . . . . Hover 12 | . . . . . . . . . . . 11 13 13 13 13 15 23 23 23 23 20 21 21 21 21 17 18 17 17 17 14 Device 11 | . . . . . 12 16 17 9 9 10 11 18 18 8 6 16 12 17 10 8 16 19 21 17 10 7 8 8 7 8 13 Storage 17 | . 14 14 14 14 9 15 15 15 16 26 18 13 17 21 20 13 17 17 13 12 17 21 21 25 25 20 18 17 18 22 20 Processor 8 | . . . . . 8 8 14 14 14 1 6 16 13 13 13 11 7 5 5 5 9 5 5 5 5 4 9 8 8 8 7 Hackware 8 | . . . . . 7 7 7 7 7 8 10 6 6 1 . . . . 9 17 10 10 10 13 15 23 19 17 15 10 . Protection 4 | . . . . . 6 3 2 . . 6 5 . . 7 13 9 11 15 17 11 3 . . . 5 2 3 4 3 3 1 Energy Cannon 1 | . . . . . 7 3 . . 2 6 . . . . . . . . . . . . . . . . . . 1 4 1 Ballistic Gun 1 | . 28 27 18 14 5 3 . . . . 1 . . . . . . . . . . . . . . . . . . . . Slashing Weapon 4 | . . . . . . 7 14 15 7 2 4 2 1 4 6 4 5 5 5 5 3 . . 4 . 2 3 4 3 3 1 Naked Turns 14 | . . . . . . . . . . . . . . . . . . . . . . . . . . . . . . . 14 Heaviest Build 139 | 12 12 15 17 17 86 94 93 85 117 117 102 51 75 86 87 97 71 71 65 71 79 71 71 80 85 139 93 90 127 130 128 Greatest Support 138 | 20 20 20 20 20 25 25 25 20 56 56 84 50 50 50 50 81 78 78 78 78 84 84 84 87 87 92 91 91 128 138 138 Greatest Overweight (x) 6 | . . . . . 3 6 4 4 6 2 3 1 1 1 1 2 1 . . 1 1 . . . . 4 1 . 1 1 1 Average Overweight (x) . | . . . . . . 3 3 4 2 1 . . . 1 1 . . . . . . . . . . . . . . . . Largest Inventory Capacity 36 | . 6 6 6 6 20 20 20 20 24 24 28 16 22 22 22 22 16 16 16 22 22 22 22 28 28 28 28 28 28 36 36 Average Capacity 21 | . 6 6 6 6 7 20 20 20 20 24 20 16 19 22 22 18 16 16 16 17 22 22 22 27 28 28 27 28 28 32 33 Most Carried 35 | . 6 6 6 6 14 20 20 20 24 24 24 16 20 22 22 22 15 16 16 19 22 22 22 28 28 28 28 28 28 35 29 Average Carried 19 | . 5 6 5 5 6 18 18 18 20 22 18 15 16 20 22 17 14 15 15 16 20 21 22 25 26 26 26 27 27 29 22 Final Capacity 36 | 6 6 6 6 6 20 20 20 20 24 24 16 16 22 22 22 16 16 16 16 22 22 22 22 28 28 28 28 28 28 36 6 Final Carried 28 | 6 6 6 6 6 14 19 17 20 24 20 16 16 20 22 22 15 15 16 16 19 22 22 22 27 27 28 28 28 27 27 6 Class Distribution -------------------- 23% | Scavenger-Mutant 22% | Hauler-Mutant 14% | Mutant 10% | Wizard-Mutant 7% | Hacker-Mutant 6% | Commander-Mutant 4% | Hacker-Scout Dominant Class ---------------- Mutant | -10/Materials Mutant | -10/Mines Mutant | -10/Exiles Mutant | -9/Mines Mutant | -8/Materials Hauler-Mutant | -7/Factory Scavenger-Mutant | -7/Lower Caves Hauler-Mutant | -7/Lower Caves Hauler-Mutant | -7/Data Miner Scavenger-Mutant | -6/Proximity Caves Scavenger-Mutant | -6/Factory Mutant | -6/Lower Caves Hauler-Mutant | -6/Zion Hauler-Mutant | -6/Deep Caves Hauler-Mutant | -5/Proximity Caves Mutant | -5/Factory Commander-Mutant | -5/Extension Commander-Mutant | -5/Cetus Commander-Mutant | -5/Archives Commander-Mutant | -5/Hub_04(d) Scavenger-Mutant | -4/Factory Scavenger-Mutant | -4/Upper Caves Scavenger-Mutant | -4/Upper Caves Hacker-Mutant | -4/Warlord Hacker-Mutant | -3/Proximity Caves Wizard-Mutant | -3/Research Hacker-Scout | -3/Quarantine Hacker-Scout | -2/Research Hacker-Assassin | -2/Testing Wizard-Mutant | -2/Section 7 Hauler-Mutant | -1/Access Resources | -11 -10 -10 -10 -9 -8 -7 -7 -7 -7 -6 -6 -6 -6 -6 -5 -5 -5 -5 -5 -5 -4 -4 -4 -4 -3 -3 -3 -2 -2 -2 -1 ----------- Run | Scr Mat Min Exi Min Mat Fac Low Low Dat Pro Fac Low Zio Dee Pro Fac Ext Cet Arc Hub Fac Upp Upp War Pro Res Qua Res Tes Sec Acc Matter Collected 7780 | 200 80 53 . 30 335 171 110 10 161 210 761 77 30 165 103 806 162 30 30 70 878 204 . 74 161 1249 456 4 509 619 32 Remotely . | . . . . . . . . . . . . . . . . . . . . . . . . . . . . . . . . Salvage Created 15462 | . 90 13 50 89 609 572 215 93 418 453 2002 69 . 227 117 1452 642 241 211 250 2173 200 . . 115 1858 530 27 456 1283 1007 Parts 673 | . 4 5 . 1 33 35 11 9 20 22 94 4 . 16 4 78 15 18 10 8 88 4 . . 5 71 11 2 41 31 33 Haulers Intercepted 11 | . . . . . . 1 . . . . . . . . . 4 . . . 1 2 . . . . 2 . . . 1 . Recyclers Shooed 12 | . . . . . . . . . . . . . . . . 1 1 . . . 2 . . . . 4 1 1 . . 2 Parts Field Recycled . | . . . . . . . . . . . . . . . . . . . . . . . . . . . . . . . . Retrieved Matter . | . . . . . . . . . . . . . . . . . . . . . . . . . . . . . . . . Parts Self-Destructed 96 | . . . . . . . 2 5 . 13 . 4 1 . 3 . . . . . . 1 . 65 2 . . . . . . Prevented 20 | . . . . . . . 4 . . 8 . . . . . . . . . . . 2 . 6 . . . . . . . Kills | -11 -10 -10 -10 -9 -8 -7 -7 -7 -7 -6 -6 -6 -6 -6 -5 -5 -5 -5 -5 -5 -4 -4 -4 -4 -3 -3 -3 -2 -2 -2 -1 ------- Run | Scr Mat Min Exi Min Mat Fac Low Low Dat Pro Fac Low Zio Dee Pro Fac Ext Cet Arc Hub Fac Upp Upp War Pro Res Qua Res Tes Sec Acc Combat Hostiles Destroyed 263 | . 2 3 1 2 13 13 5 4 4 9 39 4 . 7 5 25 9 3 2 2 27 3 . . 6 29 3 4 7 14 18 Melee 80 | . . . . . . 10 1 4 . 4 17 1 . 1 . 11 8 3 2 2 13 . . . . . . . 3 . . Guns 23 | . 2 . 1 2 3 . . . 1 2 7 . . 1 . . . . . . 1 . . . 1 . 2 . . . . Cannons 58 | . . . . . 10 1 . . . . 2 . . . . . . . . . 8 . . . . 28 . . 4 1 4 AOE 80 | . . 3 . . . 1 4 . . 2 12 3 . 5 5 13 . . . . 2 1 . . 5 . . 4 . 7 13 Classes Destroyed 24 | . 1 1 . . 5 1 1 . . 1 3 . . 2 . . 1 . 1 . 2 . . . . 1 . . . 3 1 Worker 13 | . . . . . 2 . . . . . 2 . . . . 2 . . . . 3 . . . . . . . . . 4 Builder 6 | . . . . . 1 . . . . . 1 . . . . . . . . . 1 . . . . 1 . . . . 2 Tunneler 2 | . . . . . . . . . . . 1 . . . . . . . . . . . . . . . . . . . 1 Hauler 11 | . . . . . . 1 . . . . . . . . . 4 . . . 1 2 . . . . 2 . . . 1 . Recycler 5 | . . . . . . . . . . . . . . . . . . . . . 1 . . . . 2 1 . . . 1 Mechanic 2 | . . . . . . . . . . . . . . . . . . . . . . . . . . . . . . 1 1 Operator 1 | . . . . . . . . . . . . . . . . . . . 1 . . . . . . . . . . . . Drone 1 | . . . . . . . . . . 1 . . . . . . . . . . . . . . . . . . . . . Watcher 15 | . . . . . 1 1 . . . . 1 . . . . 2 1 . . 1 . . . . . 3 3 . . 1 1 Swarmer 63 | . . 3 . . 4 7 2 3 . 3 4 3 . . 5 10 . . . . . 1 . . 5 4 . 4 . 1 4 Saboteur 2 | . . . . . . . . . . . . . . . . . . . . . 1 . . . . . . . . 1 . Grunt 87 | . 2 . 1 2 3 2 1 . . 3 23 . . . . 1 6 . . 2 13 1 . . . 12 3 . . 2 10 Brawler 2 | . . . . . . . . . . . . . . . . . . . . . . . . . . 1 . . . 1 . Duelist 4 | . . . . . . . . . . . 2 . . . . . . . . . . . . . . . . . . 2 . Protector 2 | . . . . . . . . . . . . . . . . . . . . . . . . . . . . . . 1 1 Sentry 26 | . . . . . 4 2 1 . . 1 2 . . . . 3 2 . 2 . 3 1 . . . 2 . . . 3 . Demolisher 1 | . . . . . . . . . . . . . . . . . 1 . . . . . . . . . . . . . . Hunter 23 | . . . . . 2 2 . . . 2 3 1 . . . 6 . . . . 2 . . . . 5 . . . . . Programmer 33 | . . . . . . . . . . . 5 . . . . 5 . . . . 8 . . . 1 5 . . 7 . 2 Behemoth 1 | . . . . . . . . . . . . . . . . . . . . . . . . . . . . . . 1 . Cetus Guard 3 | . . . . . . . . . . . . . . . . . . 3 . . . . . . . . . . . . . S7 Guard 1 | . . . . . . . . . . . . . . . . . . . . . . . . . . . . . . 1 . Enhanced Grunt 4 | . . . . . . . . . 4 . . . . . . . . . . . . . . . . . . . . . . Tracker 2 | . . . . . . . . . . . . . . . . . . . . . . . . . . . . . . 1 1 Investigator 1 | . . . . . . . . . . . . . . . . . . . . . . . . . . . . . . . 1 Z-Light 4 | . . . . . . . . . . . . . . 4 . . . . . . . . . . . . . . . . . Master Thief 2 | . . . . . . . 1 1 . . . . . . . . . . . . . . . . . . . . . . . Assembled 3 | . . . . . . . . . . . . . . 3 . . . . . . . . . . . . . . . . . Best Kill Streak 27 | . 1 3 1 2 5 4 5 2 3 3 7 3 . 3 5 11 5 2 3 3 9 3 . . 5 12 4 4 3 8 27 Combat Bots Only 18 | . 1 3 1 2 5 4 5 2 3 3 7 3 . 3 5 10 5 2 2 1 9 3 . . 5 12 3 4 3 7 18 Max Kills in Single Turn 4 | . 1 2 1 1 1 2 2 1 2 1 2 2 . 1 3 3 1 1 1 1 1 1 . . 3 1 1 2 1 3 4 Gunslinging . | . . . . . . . . . . . . . . . . . . . . . . . . . . . . . . . . Exploded 4 | . . 2 . . . 1 2 . . 1 2 2 . 1 3 2 . . . . 1 1 . . 3 . . 2 . 3 4 Melee 2 | . . . . . . 2 1 1 . 1 1 1 . 1 . 1 1 1 1 1 1 . . . . . . . 1 . . Uniques/NPCs Destroyed 2 | . . . . . . . . . . . . . . 1 . . . 1 . . . . . . . . . . . . . Z-Imprinter (-6/Deep Caves) A7 (-5/Cetus) Combat | -11 -10 -10 -10 -9 -8 -7 -7 -7 -7 -6 -6 -6 -6 -6 -5 -5 -5 -5 -5 -5 -4 -4 -4 -4 -3 -3 -3 -2 -2 -2 -1 -------- Run | Scr Mat Min Exi Min Mat Fac Low Low Dat Pro Fac Low Zio Dee Pro Fac Ext Cet Arc Hub Fac Upp Upp War Pro Res Qua Res Tes Sec Acc Damage Taken 27419 | . 262 14 . 24 1211 806 238 138 383 1093 2800 288 . 720 109 1689 810 116 138 398 2755 195 . . 239 3874 527 25 1717 2048 4802 Core 4882 | . 45 . . . 195 176 28 86 . 162 447 73 . 191 . 192 60 . . 91 585 43 . . 72 732 79 . 140 154 1331 Absorbed by Shields 3806 | . . . . . . . . . . . . . . . . . 149 112 . . . . . . . . . . . 1165 2380 Core Remaining (%) 55 | 100 . . . 82 64 . . . . 35 . . . . 16 . . . . 65 . . . . 39 . 37 . . 60 . Volleys Fired 522 | . 20 3 . . 91 10 4 . 3 29 79 3 . 13 3 18 . . . . 51 7 2 . 12 94 17 4 18 20 21 Largest 3 | . 2 1 . . 2 2 1 . 1 2 2 1 . 1 1 1 . . . . 2 1 1 . 1 3 2 1 2 1 1 Hottest 300 | . 40 33 . . 98 130 39 . 60 180 144 39 . 81 39 98 . . . . 171 39 61 . 80 240 150 46 300 300 300 Shots Fired 731 | . 40 3 3 6 140 13 4 . 15 41 103 3 . 30 3 18 . . . . 60 7 2 . 12 144 19 4 20 20 21 Gun 291 | . 40 . 3 6 67 5 . . 12 9 76 . . 22 . . . . . . 6 . . . 4 8 19 . 5 5 4 Cannon 331 | . . . . . 73 5 . . 3 15 10 . . . . 1 . . . . 47 . 2 . 5 133 . . 15 13 9 Launcher 109 | . . 3 . . . 3 4 . . 17 17 3 . 8 3 17 . . . . 7 7 . . 3 3 . 4 . 2 8 Special . | . . . . . . . . . . . . . . . . . . . . . . . . . . . . . . . . Kinetic 329 | . 40 . . . 65 2 . . . . 43 . . . . . . . . . 38 . 2 . 5 125 . . 9 . . Thermal 220 | . . . 3 6 75 5 . . 12 24 43 . . 22 . 1 . . . . 3 . . . 4 2 . . 2 5 13 Explosive 55 | . . 3 . . . . . . . . 12 3 . 8 3 9 . . . . . . . . 3 . . 4 . 2 8 Electromagnetic 127 | . . . . . . 6 4 . 3 17 5 . . . . 8 . . . . 19 7 . . . 17 19 . 9 13 . Robot Hit Streak 21 | . 4 5 3 5 10 4 5 . 6 10 17 . . 9 . 10 . . . . 9 3 . . 6 21 10 . 6 21 14 Robot Miss Streak 5 | . 2 2 . 1 3 1 . . 2 5 2 2 . 2 . . . . . . 4 1 . . 1 5 1 . 2 3 3 Penetration Max 4 | . . . . . . . . . . . 2 . . . . . . . . . . . . . . . . . . . 4 Secondary Targets . | . . . . . . . . . . . . . . . . . . . . . . . . . . . . . . . . Capacitor 9 | . . . . . . . . . . . . . . . . . . . . . . . . . . . . . . 5 4 Autonomous 105 | . . . 3 6 2 . . . 12 6 14 . . 18 . . . . . . . . . . . 44 . . . . . Shots Hit Robots 808 | . 26 1 3 5 80 29 11 14 10 30 128 2 . 24 1 59 45 15 5 14 91 5 . . 8 104 22 . 21 36 19 Core Hits 644 | . 5 3 1 3 25 16 7 5 12 16 100 5 . 20 6 49 20 9 3 5 61 3 . . 8 46 11 9 8 99 89 Critical Hits 66 | . . . . . 2 3 1 . . . 12 . . . . 3 1 1 1 1 15 . . . . 5 . . 2 6 13 Critical Kills 24 | . . . . . 1 1 1 . . . 4 . . . . 1 . . 1 . 5 . . . . 2 . . . 3 5 Critical Parts Destroyed 39 | . . . . . 1 2 . . . . 8 . . . . 2 1 1 . 1 8 . . . . 3 . . 2 3 7 Melee Attacks 662 | . . . . . . 32 11 24 1 14 102 2 . 2 11 87 76 27 9 21 82 . . . . 40 27 6 35 44 9 Kinetic 2 | . . . . . . . . . . . . . . . . . . . . . . . . . . . . . . 2 . Impact . | . . . . . . . . . . . . . . . . . . . . . . . . . . . . . . . . Slashing 505 | . . . . . . 32 11 24 1 14 102 2 . 2 11 50 27 9 4 6 51 . . . . 40 27 6 35 42 9 Piercing 155 | . . . . . . . . . . . . . . . . 37 49 18 5 15 31 . . . . . . . . . . Sneak Attacks 34 | . . . . . . 1 . . 1 . 1 . . . . 6 5 4 1 1 7 . . . . 3 . . . 3 1 Combat Hostiles 5 | . . . . . . . . . . . 1 . . . . 1 3 . . . . . . . . . . . . . . Follow-up Attacks 30 | . . . . . . 3 2 . . . . . . . . 4 9 5 1 3 3 . . . . . . . . . . Damage Inflicted 56393 | . 307 135 95 142 1434 1163 512 531 759 1239 5800 317 . 1456 556 4636 2069 731 319 653 4649 412 . . 812 8519 834 645 1761 8253 7654 Guns 3873 | . 307 . 95 142 479 39 . . 177 202 868 . . 487 . . . . . . 86 . . . 155 106 470 . 98 130 32 Cannons 14131 | . . . . . 931 125 . . 3 339 306 . . . . . . . . . 980 . . . 181 7466 . . 787 419 2594 Explosions 18659 | . . 135 . . 24 190 215 . 476 448 2336 250 . 924 424 2015 . . . . 928 412 . . 476 188 . 645 . 4252 4321 Melee 19664 | . . . . . . 809 297 531 103 250 2290 67 . 45 132 2621 2069 731 319 653 2655 . . . . 750 364 . 876 3452 650 Ramming 66 | . . . . . . . . . . . . . . . . . . . . . . . . . . 9 . . . . 57 Kinetic 9990 | . 307 . . . 426 17 . . . . 261 . . . . . . . . . 729 . . . 181 7282 . . 787 . . Thermal 10587 | . . . 95 142 984 179 . . 177 541 913 . . 487 . . . . . . 425 94 . . 155 . . . . 3276 3119 Explosive 11654 | . . 135 . . 24 . . . . . 2046 250 . 924 424 1711 . . . . 85 . . . 476 . . 645 . 1106 3828 Electromagnetic 4432 | . . . . . . 158 215 . 479 448 290 . . . . 304 . . . . 755 318 . . . 478 470 . 98 419 . Impact . | . . . . . . . . . . . . . . . . . . . . . . . . . . . . . . . . Slashing 14515 | . . . . . . 809 297 531 103 250 2290 67 . 45 132 1553 514 160 53 132 1487 . . . . 750 364 . 876 3452 650 Piercing 5149 | . . . . . . . . . . . . . . . . 1068 1555 571 266 521 1168 . . . . . . . . . . Highest Corruption 11 | . . . . . 1 1 1 1 10 10 2 2 2 . . 1 2 2 2 2 10 10 10 10 3 11 11 . 7 7 11 Average Corruption 3 | . . . . . 1 1 1 1 5 10 1 2 2 . . 1 1 2 2 2 7 10 10 10 2 5 5 . 3 1 5 Corruption Purged 13 | . . . . . . . . . . . . . . . . . . . . . . . . . . 1 6 . 5 1 . Effects 213 | . . . . . 4 . 1 2 9 29 8 3 . . . . 3 2 1 5 31 6 11 2 6 35 22 . 14 11 8 Message Errors 50 | . . . . . 4 . 1 . 1 6 3 . . . . . 1 . 1 2 4 2 3 . 1 7 7 . 5 2 . Matter Fused 33 | . . . . . . . . . 4 5 . . . . . . . . . . 6 1 . . 2 9 2 . 1 1 2 Heat Flow Errors 26 | . . . . . . . . . . 3 2 1 . . . . 1 . . 1 4 . 2 . 1 5 2 . 2 2 . Energy Discharges 17 | . . . . . . . . 1 1 . . . . . . . . . . . 5 . . . . 5 1 . 1 2 1 Parts Rejected 2 | . . . . . . . . . . . . . . . . . . . . . 1 . . . . . . . . . 1 Data Loss (minor) 28 | . . . . . . . . 1 2 4 . 2 . . . . 1 . . 1 3 . 1 1 1 2 3 . 2 2 2 Data Loss (major) 8 | . . . . . . . . . 1 2 . . . . . . . . . . . . 1 . . 1 1 . 1 1 . Misfires 2 | . . . . . . . . . . 1 . . . . . . . . . . 1 . . . . . . . . . . Alerts 1 | . . . . . . . . . . 1 . . . . . . . . . . . . . . . . . . . . . Misdirections 15 | . . . . . . . . . . 3 . . . . . . . . . . 4 2 4 1 . 1 . . . . . Targeting Errors 29 | . . . . . . . . . . 3 3 . . . . . . 2 . 1 2 1 . . 1 5 6 . 2 1 2 Weapon Failures 2 | . . . . . . . . . . 1 . . . . . . . . . . 1 . . . . . . . . . . Overload Shots 2 | . . . . . . . . . . . . . . . . . . . . . . . . . . 2 . . . . . Overflow Damage 3216 | . . 1 . . 1 5 21 21 . 24 243 32 . 87 53 323 283 . . 23 216 19 . . 2 1207 55 28 151 221 200 Projectiles 1150 | . . . . . 1 . . . . 5 . . . . . . . . . . 40 . . . . 979 . . 102 . 23 Explosions 646 | . . 1 . . . 5 . . . . 164 22 . 64 53 107 . . . . 53 19 . . 2 . . 28 . 49 79 Melee 1420 | . . . . . . . 21 21 . 19 79 10 . 23 . 216 283 . . 23 123 . . . . 228 55 . 49 172 98 Knockbacks 50 | . . . . . . . . . . . . . . . . . . . . . 6 . . . 2 42 . . . . . Impact . | . . . . . . . . . . . . . . . . . . . . . . . . . . . . . . . . Kinetic 41 | . . . . . . . . . . . . . . . . . . . . . 5 . . . 2 34 . . . . . Secondary 9 | . . . . . . . . . . . . . . . . . . . . . 1 . . . . 8 . . . . . Self-Inflicted Damage 895 | . . 8 . . . 105 . . . 16 34 36 . . 59 30 . . . . 51 10 . . . 4 . . . 101 441 Shots 35 | . . 1 . . . 4 . . . 1 2 1 . . 1 2 . . . . 6 1 . . . . . . . 4 12 Rammed 4 | . . . . . . . . . . . . . . . . . . . . . . . . . . 1 . . . . 3 Targets Rammed 4 | . . . . . . . . . . . . . . . . . . . . . . . . . . 1 . . . . 3 Kicked . | . . . . . . . . . . . . . . . . . . . . . . . . . . . . . . . . Crushed . | . . . . . . . . . . . . . . . . . . . . . . . . . . . . . . . . Highest Temperature 899 | . 18 . . . 268 6 12 . 12 304 178 81 . 162 36 256 180 . . 184 381 2 237 . 214 352 158 . 271 620 899 Average Temperature 112 | . 8 . . . 117 3 7 . 6 128 37 56 . 49 19 155 92 . . 85 112 2 83 . 76 84 80 . 74 145 401 Received Heat Transfer 3478 | . 144 . . 15 225 66 54 . 48 138 771 . . 206 . 81 177 20 27 108 336 36 . . . 345 132 . 27 237 285 Effects 20 | . . . . . . . . . . . . . . . . . . . . . 3 . . . . 1 . . . 7 9 Shutdowns 2 | . . . . . . . . . . . . . . . . . . . . . . . . . . . . . . 1 1 Energy Bleed 1 | . . . . . . . . . . . . . . . . . . . . . . . . . . . . . . 1 . Interference 8 | . . . . . . . . . . . . . . . . . . . . . 2 . . . . . . . . 5 1 Matter Decay 5 | . . . . . . . . . . . . . . . . . . . . . . . . . . 1 . . . . 4 Short Circuit 4 | . . . . . . . . . . . . . . . . . . . . . 1 . . . . . . . . . 3 Siege Activations . | . . . . . . . . . . . . . . . . . . . . . . . . . . . . . . . . Robots Corrupted 18 | . . . . . . 1 . . 3 1 1 . . . . 1 . . . . 3 2 . . . 1 2 . 1 2 . Combat Hostiles 17 | . . . . . . 1 . . 3 1 1 . . . . 1 . . . . 3 2 . . . 1 1 . 1 2 . Parts Fried 53 | . . . . . . . . . 13 4 . . . . . 7 1 . . . 7 1 . . . 3 12 . 1 4 . Impact Corruptions 4 | . . . . . . . . . . . . . . . . . . . . . . . . . . 4 . . . . . Robots Melted 3 | . . . . . . . . . . . . . . . . . . . . . . . . . . . . . . 2 1 Combat Hostiles 3 | . . . . . . . . . . . . . . . . . . . . . . . . . . . . . . 2 1 Parts Melted 25 | . . . . 2 5 . . . . . 7 . . . . . . . . . . . . . 1 . . . . 6 4 Heat Transferred 9940 | . . . 111 185 1591 235 . . 333 497 1260 . . 330 . . . . . . 300 100 . . 148 . . . . 3980 870 Parts Sabotaged . | . . . . . . . . . . . . . . . . . . . . . . . . . . . . . . . . Parts Stolen 10 | . . . . . . . 4 4 . 2 . . . . . . . . . . . . . . . . . . . . . Parts Stripped . | . . . . . . . . . . . . . . . . . . . . . . . . . . . . . . . . Power Chain Reactions 5 | . . . . . . 1 . . . 1 . . . . . . . . . . 2 1 . . . . . . . . . Missiles Intercepted . | . . . . . . . . . . . . . . . . . . . . . . . . . . . . . . . . Latent Energy Used 600 | . . . . . . . . . 600 . . . . . . . . . . . . . . . . . . . . . . LE Corruption 9 | . . . . . . . . . 9 . . . . . . . . . . . . . . . . . . . . . . Alert | -11 -10 -10 -10 -9 -8 -7 -7 -7 -7 -6 -6 -6 -6 -6 -5 -5 -5 -5 -5 -5 -4 -4 -4 -4 -3 -3 -3 -2 -2 -2 -1 ------- Run | Scr Mat Min Exi Min Mat Fac Low Low Dat Pro Fac Low Zio Dee Pro Fac Ext Cet Arc Hub Fac Upp Upp War Pro Res Qua Res Tes Sec Acc Peak Influence 2116 | . 88 119 . 80 134 437 . . . . 532 . . . . 506 1094 930 564 284 833 . . . . 576 179 195 289 2095 2116 Average Influence 284 | . 49 100 . 68 62 166 . . . . 313 . . . . 240 476 765 520 204 309 . . . . 276 88 75 173 465 1653 Maximum Alert Level 5 | . . . . . . 2 . . . . 2 . . . . 2 3 3 2 1 3 . . . . 2 . . 1 5 5 Low Security (%) 54 | . 100 100 . 100 100 59 . . . . 29 . . . . 46 18 . . 29 47 . . . . 33 100 100 77 65 . Level 1 24 | . . . . . . 38 . . . . 27 . . . . 34 37 . 9 70 29 . . . . 45 . . 22 15 . Level 2 12 | . . . . . . 1 . . . . 42 . . . . 19 26 38 90 . . . . . . 20 . . . . . Level 3 4 | . . . . . . . . . . . . . . . . . 17 61 . . 22 . . . . . . . . . . Level 4 . | . . . . . . . . . . . . . . . . . . . . . . . . . . . . . . . 4 Level 5 . | . . . . . . . . . . . . . . . . . . . . . . . . . . . . . . . . High Security . | . . . . . . . . . . . . . . . . . . . . . . . . . . . . . . . . Max Security 3 | . . . . . . . . . . . . . . . . . . . . . . . . . . . . . . 19 95 Squads Dispatched 93 | . . . . . . 2 . . . . 16 . . . . 7 2 . . . 9 . . . . 5 5 . 6 18 23 Investigation 11 | . . . . . . 1 . . . . 3 . . . . 2 . . . . . . . . . 2 2 . 1 . . Extermination 18 | . . . . . . . . . . . 3 . . . . 3 . . . . 3 . . . . 2 2 . 3 2 . Reinforcement 15 | . . . . . . 1 . . . . 4 . . . . 1 . . . . 5 . . . . 1 1 . 1 1 . Assault 35 | . . . . . . . . . . . . . . . . . 2 . . . 1 . . . . . . . . 12 20 Garrison 8 | . . . . . . . . . . . 6 . . . . 1 . . . . . . . . . . . . 1 . . Intercept 6 | . . . . . . . . . . . . . . . . . . . . . . . . . . . . . . 3 3 Construction Impeded 4 | . . . . . . . . . . . 1 . . . . . . . . . 2 . . . . 1 . . . . . Haulers Reinforced 4 | . . . . . . 1 . . . . 1 . . . . 1 . . . . 1 . . . . . . . . . . Stealth | -11 -10 -10 -10 -9 -8 -7 -7 -7 -7 -6 -6 -6 -6 -6 -5 -5 -5 -5 -5 -5 -4 -4 -4 -4 -3 -3 -3 -2 -2 -2 -1 --------- Run | Scr Mat Min Exi Min Mat Fac Low Low Dat Pro Fac Low Zio Dee Pro Fac Ext Cet Arc Hub Fac Upp Upp War Pro Res Qua Res Tes Sec Acc Distress Signals 17 | . . . . . 1 1 . . . . 3 . . . . . 1 2 . . 1 . . . . 3 . 1 . 3 1 Communications Jammed 133 | . . . . . . . . . . . . . . . . . 1 . . . . . . . . . . . . 64 68 Distress Signals 133 | . . . . . . . . . . . . . . . . . 1 . . . . . . . . . . . . 64 68 Times Spotted 627 | . 3 2 1 2 23 17 9 8 4 13 65 4 . 11 . 27 34 11 4 12 37 3 . 1 3 63 13 2 16 114 125 Peak Tracking Total 61 | . 2 2 1 2 5 3 4 3 4 3 8 3 . 5 2 6 12 5 3 4 6 3 . 1 4 12 3 3 4 46 61 Tactical Retreats 45 | . . . . . 2 1 . 1 . 2 8 . . . . 1 1 . . 1 5 . . . . 10 . . 3 4 6 Traps | -11 -10 -10 -10 -9 -8 -7 -7 -7 -7 -6 -6 -6 -6 -6 -5 -5 -5 -5 -5 -5 -4 -4 -4 -4 -3 -3 -3 -2 -2 -2 -1 ------- Run | Scr Mat Min Exi Min Mat Fac Low Low Dat Pro Fac Low Zio Dee Pro Fac Ext Cet Arc Hub Fac Upp Upp War Pro Res Qua Res Tes Sec Acc Traps Triggered 14 | . . . . . 1 . . . . . 2 . . . . 1 1 . . . 3 . . . . 1 1 . 1 2 1 Indirectly . | . . . . . . . . . . . . . . . . . . . . . . . . . . . . . . . . Trap Hack Attempts . | . . . . . . . . . . . . . . . . . . . . . . . . . . . . . . . . Triggered . | . . . . . . . . . . . . . . . . . . . . . . . . . . . . . . . . Disarmed 12 | . . . . . . . . . . . . . . . . . 6 . . . . . . . . . . . . 6 . Reprogrammed . | . . . . . . . . . . . . . . . . . . . . . . . . . . . . . . . . Reused . | . . . . . . . . . . . . . . . . . . . . . . . . . . . . . . . . Traps Extracted . | . . . . . . . . . . . . . . . . . . . . . . . . . . . . . . . . Installed . | . . . . . . . . . . . . . . . . . . . . . . . . . . . . . . . . Triggered 10 | . . . . . . . . . . . . . . . . . 1 . . . . . . 9 . . . . . . . Exploded 2 | . . . 2 . . . . . . . . . . . . . . . . . . . . . . . . . . . . Machines | -11 -10 -10 -10 -9 -8 -7 -7 -7 -7 -6 -6 -6 -6 -6 -5 -5 -5 -5 -5 -5 -4 -4 -4 -4 -3 -3 -3 -2 -2 -2 -1 ---------- Run | Scr Mat Min Exi Min Mat Fac Low Low Dat Pro Fac Low Zio Dee Pro Fac Ext Cet Arc Hub Fac Upp Upp War Pro Res Qua Res Tes Sec Acc Machines Disabled 46 | . . 1 . 1 2 . . . 1 . 3 . . 3 . 2 . . 1 . 4 . . . . 4 7 . 7 10 . Max in Single Turn 2 | . . 1 . 1 2 . . . 1 . 2 . . 1 . 2 . . . . 2 . . . . 1 1 . 1 2 . Garrison Access 6 | . . . . . 1 1 . . . . . . . . . 1 . . . . 1 . . . . 1 . . . 1 . Network Hub 1 | . . . . . . . . . . . . . . . . . . . . 1 . . . . . . . . . . . Machines Sabotaged . | . . . . . . . . . . . . . . . . . . . . . . . . . . . . . . . . Garrisons Compromised 1 | . . . . . . . . . . . . . . . . 1 . . . . . . . . . . . . . . . Overloaded Fab Kills . | . . . . . . . . . . . . . . . . . . . . . . . . . . . . . . . . Fab Network Shutdowns 1 | . . . . . . . . . . . . . . . . . . . . . 1 . . . . . . . . . . Hacking | -11 -10 -10 -10 -9 -8 -7 -7 -7 -7 -6 -6 -6 -6 -6 -5 -5 -5 -5 -5 -5 -4 -4 -4 -4 -3 -3 -3 -2 -2 -2 -1 --------- Run | Scr Mat Min Exi Min Mat Fac Low Low Dat Pro Fac Low Zio Dee Pro Fac Ext Cet Arc Hub Fac Upp Upp War Pro Res Qua Res Tes Sec Acc Machines Accessed 106 | . 1 . 1 . 4 3 . 2 3 . 10 . . . . 15 10 2 . 4 6 . . 5 . 8 9 . 10 12 1 Terminals 70 | . 1 . . . 3 2 . . . . 4 . . . . 9 10 2 . 4 3 . . . . 4 8 . 8 11 1 Fabricators 8 | . . . . . . . . . . . 3 . . . . 1 . . . . 1 . . . . 1 . . 2 . . Repair Stations 8 | . . . . . . . . . . . 1 . . . . 3 . . . . 1 . . . . 2 1 . . . . Recycling Units 1 | . . . . . . . . . . . . . . . . 1 . . . . . . . . . . . . . . . Scanalyzers 1 | . . . . . . . . . . . 1 . . . . . . . . . . . . . . . . . . . . Garrison Access 7 | . . . . . 1 1 . . . . 1 . . . . 1 . . . . 1 . . . . 1 . . . 1 . Total Hacks 403 | . 1 . 1 . 6 7 . 2 25 . 34 . . . . 45 29 3 . 17 22 . . 14 . 39 52 . 61 43 2 Successful 270 | . 1 . 1 . 6 3 . 2 25 . 19 . . . . 24 11 . . 8 11 . . 14 . 27 39 . 44 35 . Failed 130 | . . . . . . 4 . . . . 15 . . . . 21 18 3 . 9 11 . . . . 11 12 . 16 8 2 Catastrophic 15 | . . . . . . . . . . . 2 . . . . 4 2 . . . 3 . . . . . 2 . 1 1 . Database Lockouts 4 | . . . . . . . . . . . . . . . . . . . . . . . . . . 2 1 . 1 . . Manual 186 | . 1 . 1 . 4 1 . . . . 13 . 5 . . 10 16 4 . 13 4 . . 1 . 23 30 . 40 19 1 Terminals 271 | . 1 . . . 5 4 . . . . 18 . . . . 29 29 3 . 17 11 . . . . 24 38 . 48 42 2 Fabricators 39 | . . . . . . . . . . . 11 . . . . 5 . . . . 6 . . . . 4 . . 13 . . Repair Stations 37 | . . . . . . . . . . . 2 . . . . 8 . . . . 3 . . . . 10 14 . . . . Recycling Units 1 | . . . . . . . . . . . . . . . . 1 . . . . . . . . . . . . . . . Scanalyzers 1 | . . . . . . . . . . . 1 . . . . . . . . . . . . . . . . . . . . Garrison Access 12 | . . . . . 1 3 . . . . 2 . . . . 2 . . . . 2 . . . . 1 . . . 1 . Terminal Hacks 164 | . 1 . 1 . 3 2 . 2 25 . 7 . . . . 10 8 . . 6 3 . . 14 . 11 22 . 22 27 . Record 16 | . . . . . . . . 1 6 . . . . . . . . . . . . . . 8 . . 1 . . . . Part Schematic 21 | . . . . . 1 . . . 9 . 1 . . . . . . . . . . . . . . 2 2 . 6 . . Robot Schematic 7 | . . . . . . . . . 7 . . . . . . . . . . . . . . . . . . . . . . Robot Analysis 9 | . . . . . . . . . . . . . . . . 1 . . . . . . . . . . . . 6 2 . Prototype ID Bank 13 | . . . . . . 1 . . 3 . . . . . . 1 1 . . . . . . 4 . 1 . . 1 1 . Open Door 14 | . . . . . . . . 1 . . . . . . . 1 5 . . . . . . 2 . . . . 1 4 . Level Access Points 3 | . . . . . . 1 . . . . 1 . . . . . . . . . . . . . . . . . . 1 . Branch Access Points 6 | . 1 . . . 1 . . . . . 1 . . . . 1 . . . . 1 . . . . 1 . . . . . Emergency Access Points 2 | . . . . . . . . . . . . . . . . . . . . 1 . . . . . . 1 . . . . Machine Index 3 | . . . . . . . . . . . . . . . . . . . . . 1 . . . . . . . 1 1 . Terminal Index 3 | . . . . . . . . . . . . . . . . . . . . . . . . . . . 1 . 1 1 . Fabricator Index 4 | . . . . . . . . . . . 1 . . . . . . . . . . . . . . 1 1 . 1 . . Alert Level 11 | . . . . . . . . . . . 1 . . . . 1 . . . . . . . . . 1 3 . 1 4 . Unreport Threat 11 | . . . . . . . . . . . 1 . . . . 1 1 . . 2 . . . . . 3 2 . . 1 . Locate Traps 14 | . . . . . 1 . . . . . 1 . . . . 3 . . . 1 . . . . . . 3 . . 5 . Disarm Traps 3 | . . . . . . . . . . . . . . . . . 1 . . . . . . . . . . . . 2 . Dispatch Records 2 | . . . . . . . . . . . . . . . . . . . . . . . . . . . 1 . 1 . . Recall Investigation 4 | . . . . . . . . . . . . . . . . . . . . . . . . . . 1 2 . 1 . . Recall Extermination 4 | . . . . . . . . . . . . . . . . . . . . . . . . . . . 2 . . 2 . Recall Reinforcements 4 | . . . . . . . . . . . . . . . . . . . . . 1 . . . . . 1 . 1 1 . Hauler Manifests 3 | . . . . . . . . . . . . . . . . 1 . . . . . . . . . 1 . . . 1 . Zone Layout 5 | . . . . . . . . . . . . . . . . . . . . 2 . . . . . . 2 . 1 . . EX-Prototype ID Bank 1 | . . . 1 . . . . . . . . . . . . . . . . . . . . . . . . . . . . Activate Exoskeleton 1 | . . . . . . . . . . . . . . . . . . . . . . . . . . . . . . 1 . Fabricator Hacks 27 | . . . . . . . . . . . 7 . . . . 2 . . . . 4 . . . . 4 . . 10 . . Network Status 1 | . . . . . . . . . . . . . . . . . . . . . . . . . . . . . 1 . . Load Schematic 13 | . . . . . . . . . . . 4 . . . . 1 . . . . 2 . . . . 2 . . 4 . . Build 13 | . . . . . . . . . . . 3 . . . . 1 . . . . 2 . . . . 2 . . 5 . . Repair Station Hacks 28 | . . . . . . . . . . . 2 . . . . 5 . . . . 2 . . . . 8 11 . . . . Scan Component 15 | . . . . . . . . . . . 1 . . . . 3 . . . . 1 . . . . 4 6 . . . . Repair 13 | . . . . . . . . . . . 1 . . . . 2 . . . . 1 . . . . 4 5 . . . . Recycling Unit Hacks 1 | . . . . . . . . . . . . . . . . 1 . . . . . . . . . . . . . . . Retrieve Components 1 | . . . . . . . . . . . . . . . . 1 . . . . . . . . . . . . . . . Scanalyzer 1 | . . . . . . . . . . . 1 . . . . . . . . . . . . . . . . . . . . Insert Component 1 | . . . . . . . . . . . 1 . . . . . . . . . . . . . . . . . . . . Garrison Access Hacks 5 | . . . . . 1 . . . . . . . . . . 1 . . . . 1 . . . . 1 . . . 1 . Seal Access 5 | . . . . . 1 . . . . . . . . . . 1 . . . . 1 . . . . 1 . . . 1 . Unauthorized Hacks 44 | . . . . . 2 1 . . . . 2 . . . . 5 3 . . 2 1 . . . . 3 6 . 12 7 . Terminals 40 | . . . . . 2 . . . . . 2 . . . . 5 3 . . 2 1 . . . . 3 6 . 9 7 . Track 14 | . . . . . 1 . . . . . 1 . . . . . . . . 2 . . . . . . 3 . 3 4 . Assimilate 7 | . . . . . . . . . . . . . . . . 2 . . . . 1 . . . . . 1 . 3 . . Botnet 14 | . . . . . . . . . . . 1 . . . . 3 3 . . . . . . . . 2 2 . 2 1 . Disrupt 3 | . . . . . 1 . . . . . . . . . . . . . . . . . . . . . . . 1 1 . Operators 2 | . . . . . . . . . . . . . . . . . . . . . . . . . . 1 . . . 1 . Fabricators 3 | . . . . . . . . . . . . . . . . . . . . . . . . . . . . . 3 . . Report 1 | . . . . . . . . . . . . . . . . . . . . . . . . . . . . . 1 . . Prioritize 1 | . . . . . . . . . . . . . . . . . . . . . . . . . . . . . 1 . . Siphon 1 | . . . . . . . . . . . . . . . . . . . . . . . . . . . . . 1 . . Repair Stations . | . . . . . . . . . . . . . . . . . . . . . . . . . . . . . . . . Recycling Units . | . . . . . . . . . . . . . . . . . . . . . . . . . . . . . . . . Scanalyzers . | . . . . . . . . . . . . . . . . . . . . . . . . . . . . . . . . Garrison Access 1 | . . . . . . 1 . . . . . . . . . . . . . . . . . . . . . . . . . Jam 1 | . . . . . . 1 . . . . . . . . . . . . . . . . . . . . . . . . . Data Cores Recovered . | . . . . . . . . . . . . . . . . . . . . . . . . . . . . . . . . Used . | . . . . . . . . . . . . . . . . . . . . . . . . . . . . . . . . Hacking Detections 71 | . 1 . . . 1 3 . . . . 9 . . . . 12 10 2 . 4 5 . . . . 5 6 . 7 5 1 Full Trace Events 6 | . . . . . . . . . . . 3 . . . . 2 . . . . . . . . . . 1 . . . . Feedback Events 1 | . . . . . . . . . . . . . . . . . . . . . . . . . . . 1 . . . . Corruption 1 | . . . . . . . . . . . . . . . . . . . . . . . . . . . 1 . . . . Feedback Blocked . | . . . . . . . . . . . . . . . . . . . . . . . . . . . . . . . . Robot Schematics Acquired 7 | . . . . . . . . . 7 . . . . . . . . . . . . . . . . . . . . . . Robots Built . | . . . . . . . . . . . . . . . . . . . . . . . . . . . . . . . . Matter . | . . . . . . . . . . . . . . . . . . . . . . . . . . . . . . . . Time . | . . . . . . . . . . . . . . . . . . . . . . . . . . . . . . . . Total Robot Build Rating . | . . . . . . . . . . . . . . . . . . . . . . . . . . . . . . . . Part Schematics Acquired 21 | . . . . . 1 . . . 9 . 1 . . . . . . . . . . . . . . 2 2 . 6 . . Parts Built 16 | . . . . . . . . . . . 3 . . . . 2 . . . . 3 . . . . 2 . . 6 . . Matter 2993 | . . . . . . . . . . . 596 . . . . 212 . . . . 497 . . . . 570 . . 1118 . . Time 734 | . . . . . . . . . . . 137 . . . . 106 . . . . 129 . . . . 100 . . 262 . . Total Part Build Rating 109 | . . . . . . . . . . . 20 . . . . 12 . . . . 17 . . . . 10 . . 50 . . Parts Repaired 13 | . . . . . . . . . . . 1 . . . . 2 . . . . 1 . . . . 4 5 . . . . Time 441 | . . . . . . . . . . . 44 . . . . 136 . . . . 38 . . . . 90 133 . . . . Parts Recycled . | . . . . . . . . . . . . . . . . . . . . . . . . . . . . . . . . Recycled Matter . | . . . . . . . . . . . . . . . . . . . . . . . . . . . . . . . . Retrieved Matter . | . . . . . . . . . . . . . . . . . . . . . . . . . . . . . . . . Retrieved Components 3 | . . . . . . . . . . . . . . . . 3 . . . . . . . . . . . . . . . Parts Scanalyzed . | . . . . . . . . . . . . . . . . . . . . . . . . . . . . . . . . Part Schematics Acquired . | . . . . . . . . . . . . . . . . . . . . . . . . . . . . . . . . Parts Damaged . | . . . . . . . . . . . . . . . . . . . . . . . . . . . . . . . . Bothacking | -11 -10 -10 -10 -9 -8 -7 -7 -7 -7 -6 -6 -6 -6 -6 -5 -5 -5 -5 -5 -5 -4 -4 -4 -4 -3 -3 -3 -2 -2 -2 -1 ------------ Run | Scr Mat Min Exi Min Mat Fac Low Low Dat Pro Fac Low Zio Dee Pro Fac Ext Cet Arc Hub Fac Upp Upp War Pro Res Qua Res Tes Sec Acc Used RIF Installer . | . . . . . . . . . . . . . . . . . . . . . . . . . . . . . . . . Robots Hacked . | . . . . . . . . . . . . . . . . . . . . . . . . . . . . . . . . Non-combat . | . . . . . . . . . . . . . . . . . . . . . . . . . . . . . . . . Combat . | . . . . . . . . . . . . . . . . . . . . . . . . . . . . . . . . Robot Hacks Applied . | . . . . . . . . . . . . . . . . . . . . . . . . . . . . . . . . Relay Couplers Released 4 | . . . . . . . . . . . 4 . . . . . . . . . . . . . . . . . . . . Programmers 4 | . . . . . . . . . . . 4 . . . . . . . . . . . . . . . . . . . . Robots Rewired 19 | . . . . . . . . . . . . . . . . . 19 . . . . . . . . . . . . . . Allies Hacked . | . . . . . . . . . . . . . . . . . . . . . . . . . . . . . . . . Hacks Repelled . | . . . . . . . . . . . . . . . . . . . . . . . . . . . . . . . . Allies | -11 -10 -10 -10 -9 -8 -7 -7 -7 -7 -6 -6 -6 -6 -6 -5 -5 -5 -5 -5 -5 -4 -4 -4 -4 -3 -3 -3 -2 -2 -2 -1 -------- Run | Scr Mat Min Exi Min Mat Fac Low Low Dat Pro Fac Low Zio Dee Pro Fac Ext Cet Arc Hub Fac Upp Upp War Pro Res Qua Res Tes Sec Acc Total Allies 50 | . . . . . . . . . . . . . 2 . . 1 28 5 . . 1 . . . . . 1 . 3 1 8 Largest Group 25 | . . . . . . . . . . . . . 2 2 . 1 25 20 17 17 1 . . . . . 1 . 2 1 6 Highest-Rated Group 1075 | . . . . . . . . . . . . . 188 188 . 26 834 980 727 727 26 . . . . . 10 . 70 1075 1053 Highest-Rated Ally 1075 | . . . . . . . . . . . . . 94 94 . 26 156 156 94 94 26 . . . . . 10 . 44 1075 1053 Total Orders 20 | . . . . . . . . . . . 1 . . . . 2 . . . 1 3 . . . . . 6 . 7 . . STAY 5 | . . . . . . . . . . . . . . . . . . . . 1 . . . . . . 2 . 2 . . GOTO 7 | . . . . . . . . . . . . . . . . 1 . . . . 2 . . . . . 1 . 3 . . FOLLOW 6 | . . . . . . . . . . . . . . . . . . . . . 1 . . . . . 3 . 2 . . EXPLORE 2 | . . . . . . . . . . . 1 . . . . 1 . . . . . . . . . . . . . . . Ally Attacks 341 | . . . . . . . . . . . . . . 54 . . 150 54 25 7 . . . . . . . . . 36 15 Total Damage 10040 | . . . . . . . . . . . . . . 2594 . . 3242 1515 664 146 . . . . . . . . . 1572 307 Kills 52 | . . . . . . . . . . . . . . 10 . . 25 9 2 2 . . . . . . . . . 3 1 Allies Corrupted 2 | . . . . . . . . . . 1 . . . . . . . 1 . . . . . . . . . . . . . Allies Melted 1 | . . . . . . . . . . . . . . . . . . . . . . . . 1 . . . . . . . Intel | -11 -10 -10 -10 -9 -8 -7 -7 -7 -7 -6 -6 -6 -6 -6 -5 -5 -5 -5 -5 -5 -4 -4 -4 -4 -3 -3 -3 -2 -2 -2 -1 ------- Run | Scr Mat Min Exi Min Mat Fac Low Low Dat Pro Fac Low Zio Dee Pro Fac Ext Cet Arc Hub Fac Upp Upp War Pro Res Qua Res Tes Sec Acc Robot Analysis Total 9 | . . . . . . . . . . . . . . . . 1 . . . . . . . . . . . . 6 2 . Derelict Logs Recovered 9 | . . . . . . . 1 2 . . . 1 2 . 1 . . . . . . 1 1 . . . . . . . . Drone Launches 6 | . . . . . . . . . . 2 2 . . . . 2 . . . . . . . . . . . . . . . Drone Recoveries . | . . . . . . . . . . . . . . . . . . . . . . . . . . . . . . . . Exploration | -11 -10 -10 -10 -9 -8 -7 -7 -7 -7 -6 -6 -6 -6 -6 -5 -5 -5 -5 -5 -5 -4 -4 -4 -4 -3 -3 -3 -2 -2 -2 -1 ------------- Run | Scr Mat Min Exi Min Mat Fac Low Low Dat Pro Fac Low Zio Dee Pro Fac Ext Cet Arc Hub Fac Upp Upp War Pro Res Qua Res Tes Sec Acc Turns Passed 21862 | . 129 140 374 25 1428 825 594 689 363 715 1914 104 1343 1168 364 1936 835 232 82 384 1429 97 137 638 193 1594 1236 128 1309 1138 319 Spaces Moved 15953 | 1 60 107 306 17 716 305 235 259 159 350 1370 103 1072 716 222 1061 488 232 76 493 1187 135 228 665 269 1254 919 132 1130 1258 428 Core 5 | . . . . . . . . . . . . . . . . . . . . . . . . . . . . . . . 5 Treads 185 | . . . . . 185 . . . . . . . . . . . . . . . . . . . . . . . . . . Legs 2696 | 1 60 107 306 17 531 305 235 259 146 350 379 . . . . . . . . . . . . . . . . . . . . Wheels 72 | . . . . . . . . . 13 . . . . . . . . . . . . . . . . 59 . . . . . Hover 12995 | . . . . . . . . . . . 991 103 1072 716 222 1061 488 232 76 493 1187 135 228 665 269 1195 919 132 1130 1258 423 Flight . | . . . . . . . . . . . . . . . . . . . . . . . . . . . . . . . . Fastest Speed 38 | 120 120 120 120 120 120 210 210 240 150 150 62 76 76 146 146 45 45 53 53 53 50 58 58 58 58 58 63 63 38 48 48 Average Speed 95 | 120 120 120 120 120 146 216 228 240 196 163 93 83 122 146 146 114 70 53 53 53 63 58 58 58 58 70 72 63 76 48 48 Slowest Speed 300 | 120 120 120 120 120 210 300 240 240 240 180 290 146 146 146 146 171 102 53 53 125 128 58 58 58 58 290 131 63 152 152 156 Overloaded Moves 29 | . . . . . . . . . . . . . . . . . . . . 5 . . . . . . . . 24 . . Propulsion Burnouts . | . . . . . . . . . . . . . . . . . . . . . . . . . . . . . . . . Robots Hopped . | . . . . . . . . . . . . . . . . . . . . . . . . . . . . . . . . Cave-ins Triggered 1 | . . . . . . . . . . . . . . . . . 1 . . . . . . . . . . . . . . Teleports 2 | . . . . . . . . . . . . . . . . . . . . . . . . . . . . . . 2 . Exploration Rate (%) 46 | 2 26 24 60 7 53 8 50 42 82 68 45 23 83 72 44 27 59 66 73 51 23 32 47 82 52 22 77 5 87 67 23 Regions Visited 31 Branch Regions 22 Pre-discovered Areas 5 | . . . . . . . . . 1 . . 1 2 . 1 . . . . . . . . . . . . . . . . Known Exits Taken 25 | . 1 . . . . 1 1 1 1 1 1 . 1 1 1 1 1 1 1 1 1 1 1 1 1 1 1 1 1 1 . Unknown Exits Taken 6 | 1 . 1 1 1 1 . . . . . . 1 . . . . . . . . . . . . . . . . . . . Scrap Searched 20 | . . . . . . . 7 2 . 1 . 2 2 . 1 . . . . . . 1 1 . 3 . . . . . . Spaces Dug 152 | . . . . . . 5 . . . . 12 . . . 10 17 13 1 1 1 11 . 3 . . 28 12 6 11 17 4 Terrain Destroyed 678 | . . 29 . . 4 14 . . 40 22 31 31 . 83 41 79 13 1 1 1 62 2 3 . 23 48 12 40 31 34 33 Melee 143 | . . . . . . 5 . . . . 12 . . . 10 17 13 1 1 1 10 . . . . 26 12 6 11 17 1 Projectile 96 | . . . . . 4 . . . 1 8 . . . 1 . . . . . . 20 . 3 . 1 22 . . 20 . 16 AOE 439 | . . 29 . . . 9 . . 39 14 19 31 . 82 31 62 . . . . 32 2 . . 22 . . 34 . 17 16 Actions | -11 -10 -10 -10 -9 -8 -7 -7 -7 -7 -6 -6 -6 -6 -6 -5 -5 -5 -5 -5 -5 -4 -4 -4 -4 -3 -3 -3 -2 -2 -2 -1 --------- Run | Scr Mat Min Exi Min Mat Fac Low Low Dat Pro Fac Low Zio Dee Pro Fac Ext Cet Arc Hub Fac Upp Upp War Pro Res Qua Res Tes Sec Acc Total 21237 | . 81 115 316 22 962 438 283 304 204 428 1837 117 1098 826 242 1668 900 320 111 596 1714 145 230 919 294 1810 1424 160 1494 1680 499 Wait 2842 | . . 2 . 2 109 57 2 2 12 15 201 1 10 58 4 375 93 62 23 73 303 . 1 235 . 308 403 17 223 250 1 Move 15921 | . 59 106 305 16 715 304 234 258 158 349 1369 102 1071 715 221 1060 486 231 75 492 1186 134 227 664 268 1253 918 131 1129 1257 428 Hop . | . . . . . . . . . . . . . . . . . . . . . . . . . . . . . . . . Pick Up 195 | . 1 1 2 1 10 15 11 13 7 4 15 . 5 8 . 22 . 2 1 6 15 . . 4 4 14 14 . 8 12 . Fast Attach 151 | . . . 1 . 18 3 3 1 6 3 19 . 5 5 1 17 1 2 1 1 19 . . 4 . 11 8 . 13 8 1 Attach 175 | . . . . 2 1 4 2 . 5 7 16 4 2 6 . 19 1 . 1 1 16 2 . 1 4 26 8 1 17 17 12 Detach 151 | . . . 2 . 2 2 2 . 5 4 10 4 2 7 . 14 1 . 1 . 14 2 . 4 3 21 7 1 20 18 5 Swap 160 | . . 2 . . 5 8 4 . 4 . 6 1 . 4 1 25 3 1 2 4 18 . . 1 3 25 11 . 11 21 . Drop 194 | . 1 1 6 1 11 8 12 8 3 2 19 . 3 8 1 26 . 3 2 4 16 . . 6 . 17 11 . 20 5 . Fire 522 | . 20 3 . . 91 10 4 . 3 29 79 3 . 13 3 18 . . . . 51 7 2 . 12 94 17 4 18 20 21 Melee 605 | . . . . . . 27 9 22 1 14 102 2 . 2 11 78 61 19 5 15 76 . . . . 40 27 6 35 44 9 Ram 4 | . . . . . . . . . . . . . . . . . . . . . . . . . . 1 . . . . 3 Kick . | . . . . . . . . . . . . . . . . . . . . . . . . . . . . . . . . Crush . | . . . . . . . . . . . . . . . . . . . . . . . . . . . . . . . . Escape Stasis 74 | . . . . . . . . . . . . . . . . 13 14 . . . . . . . . . . . . 28 19 Rewire 240 | . . . . . . . . . . . . . . . . . 240 . . . . . . . . . . . . . . Trap . | . . . . . . . . . . . . . . . . . . . . . . . . . . . . . . . . Miscellaneous 3 | . . . . . . . . . . 1 1 . . . . 1 . . . . . . . . . . . . . . . Route ------- -11/Scrapyard -10/Materials -10/Mines (discovered 2 exits: [*Mat] / *Exi) -10/Exiles -9/Mines -8/Materials (discovered 2 exits: *Fac x2) -7/Factory (discovered 5 exits: Fac x4 / *Low) -7/Lower Caves -7/Lower Caves -7/Data Miner -6/Proximity Caves -6/Factory (discovered 6 exits: *Fac x4 / *Low x2) -6/Lower Caves -6/Zion (discovered 2 exits: *Dee / [*Pro]) -6/Deep Caves -5/Proximity Caves -5/Factory (discovered 6 exits: *Fac x2 / *Upp x2 / *Ext x2) -5/Extension (discovered 2 exits: *Fac / *Cet) -5/Cetus (discovered 2 exits: *Fac / *Arc) -5/Archives (discovered 2 exits: *Hub x2) -5/Hub_04(d) (discovered 2 exits: *Fac x2) -4/Factory (discovered 3 exits: *Res / *Upp x2) -4/Upper Caves -4/Upper Caves -4/Warlord -3/Proximity Caves -3/Research (discovered 3 exits: Arm / *Qua x2) -3/Quarantine -2/Research -2/Testing (discovered 2 exits: *Acc / *Sec) -2/Section 7 -1/Access History --------- Turn | Location | Event 1 | -11/Scrapyard | Discovered new exit (range 0) 1 | -11/Scrapyard | Entered Materials 10 | -10/Materials | Identified exit to Mines 130 | -10/Materials | Entered Mines 148 | -10/Mines | Received a Rocket Launcher from a helpful Derelict 209 | -10/Mines | Discovered new exit (range 9) 264 | -10/Mines | Deemed a non-threat by the Exiles lab entrance 265 | -10/Mines | Discovered new exit (range 5) 270 | -10/Mines | Entered Exiles 300 | -10/Exiles | Build established: Mutant 300 | -10/Exiles | Met 8R-AWN 318 | -10/Exiles | Met EX-HEX 352 | -10/Exiles | Met EX-BIN 375 | -10/Exiles | Aligned with FarCom system 376 | -10/Exiles | Given EX-Vault access code 406 | -10/Exiles | Opened EX-Vault 438 | -10/Exiles | Warned to stay clear of 0b10 Research branches 455 | -10/Exiles | Exiles lab attacked by MAIN.C 512 | -10/Exiles | Found Latent Energy Streamer 514 | -10/Exiles | Found AWS/Autocannon 528 | -10/Exiles | Found AWS/Thermal 633 | -10/Exiles | Discovered new exit (range 10) 644 | -10/Exiles | Stole three prototypes: AWS/Thermal, Latent Energy Streamer, AWS/Autocannon 644 | -10/Exiles | Entered Mines 661 | -9/Mines | Discovered new exit (range 8) 669 | -9/Mines | Entered Materials 669 | -8/Materials | Evolved 4 slots: Utility x4 1092 | -8/Materials | Discovered new exit (range 7) 1352 | -8/Materials | Lost 3 parts (1n2w) 1958 | -8/Materials | Discovered new exit (range 10) 2097 | -8/Materials | Entered Factory 2097 | -7/Factory | Evolved 2 slots: Utility x2 2099 | -7/Factory | FarCom data flow suspended 2397 | -7/Factory | Build established: Hauler-Mutant 2753 | -7/Factory | Discovered new exit (range 9) 2821 | -7/Factory | Identified exit to Factory 2862 | -7/Factory | Identified exit to Lower Caves 2922 | -7/Factory | Entered Lower Caves 3040 | -7/Lower Caves | Learned Factory emergency access door positions 3104 | -7/Lower Caves | Attracted the attention of an 0b10 checkpoint 3126 | -7/Lower Caves | Spotted YO-T94(f) 3127 | -7/Lower Caves | Encountered a Master Thief 3128 | -7/Lower Caves | Spotted TS-P7R(f) 3129 | -7/Lower Caves | Encountered a Master Thief 3131 | -7/Lower Caves | Destroyed YO-T94(f) 3134 | -7/Lower Caves | Imp. Medium Armor Plating stolen by Master Thief 3327 | -7/Lower Caves | Spotted RS-EEY(f) 3328 | -7/Lower Caves | Encountered a Master Thief 3330 | -7/Lower Caves | Nanoactuators stolen by Master Thief 3335 | -7/Lower Caves | Spotted 51-T5T(f) 3336 | -7/Lower Caves | Encountered a Master Thief 3340 | -7/Lower Caves | Master Tearclaws stolen by Master Thief 3402 | -7/Lower Caves | Build established: Scavenger-Mutant 3470 | -7/Lower Caves | Discovered new exit (range 20) 3514 | -7/Lower Caves | Identified exit to Lower Caves 3516 | -7/Lower Caves | Entered another Lower Caves area 3701 | -7/Lower Caves | Spotted IX-ZC5(f) 3702 | -7/Lower Caves | Encountered a Master Thief 3704 | -7/Lower Caves | Spotted FZ-69K(f) 3705 | -7/Lower Caves | Encountered a Master Thief 3706 | -7/Lower Caves | Mak. Cloaking Device stolen by Master Thief 3721 | -7/Lower Caves | Destroyed FZ-69K(f) 3892 | -7/Lower Caves | Identified exit to Data Miner 3907 | -7/Lower Caves | Spotted QI-L6L(f) 3908 | -7/Lower Caves | Encountered a Master Thief 3910 | -7/Lower Caves | Spotted WK-HYP(f) 3911 | -7/Lower Caves | Encountered a Master Thief 3913 | -7/Lower Caves | Nuclear Pulse Thruster stolen by Master Thief 3925 | -7/Lower Caves | Nuclear Pulse Thruster stolen by Master Thief 3990 | -7/Lower Caves | Build established: Hauler-Mutant 4205 | -7/Lower Caves | Entered Data Miner 4205 | -7/Data Miner | Discovered new exit (range 6) 4237 | -7/Data Miner | Met Data Miner 4313 | -7/Data Miner | Learned location of Section 7 (-2) 4313 | -7/Data Miner | Acquired the access code to Warlord's prototype stash 4349 | -7/Data Miner | Received God Mode back door access code from Data Miner 4387 | -7/Data Miner | Data Conduit disabled 4402 | -7/Data Miner | System corruption reached 10% 4439 | -7/Data Miner | Found Prototype Device 4439 | -7/Data Miner | Identified Exp. Thermal Shield 4444 | -7/Data Miner | Lost 3 parts (1p2n) 4566 | -7/Data Miner | Identified exit to Proximity Caves 4568 | -7/Data Miner | Entered Proximity Caves 4697 | -6/Proximity Caves | Build established: Scavenger-Mutant 4706 | -6/Proximity Caves | Spotted MH-P7Z(f) 4707 | -6/Proximity Caves | Encountered a Master Thief 4707 | -6/Proximity Caves | Latent Energy Streamer stolen by Master Thief 4911 | -6/Proximity Caves | Attracted the attention of an 0b10 checkpoint 4915 | -6/Proximity Caves | Lost 4 parts (2u2w) 4924 | -6/Proximity Caves | Core integrity fell below 50% 5187 | -6/Proximity Caves | Spotted GO-J8D(f) 5188 | -6/Proximity Caves | Encountered a Master Thief 5204 | -6/Proximity Caves | Adv. Particle Charger stolen by Master Thief 5274 | -6/Proximity Caves | Discovered exit to Factory (range 5) 5283 | -6/Proximity Caves | Entered Factory 5283 | -6/Factory | Evolved 2 slots: Propulsion x1, Utility x1 5485 | -6/Factory | Repaired Lrn. Terrain Scanner 6005 | -6/Factory | Destroyed 7 combat bots 6006 | -6/Factory | Lost 3 parts (1p2n) 6117 | -6/Factory | Fabricated Cmb. Gravmag System (x2) 6169 | -6/Factory | Lost 4 parts (1p1u2w) 6248 | -6/Factory | Identified exit to Factory 6361 | -6/Factory | Garrison activated, responded to threat 6576 | -6/Factory | Identified exit to Lower Caves 6606 | -6/Factory | Garrison activated, responded to threat 6750 | -6/Factory | Found Prototype Processor 6750 | -6/Factory | Identified Exp. Signal Interpreter 6802 | -6/Factory | Fabricated Exp. Transmission Jammer? 6874 | -6/Factory | Core integrity fell below 50% 6928 | -6/Factory | Build established: Mutant 7197 | -6/Factory | Entered Lower Caves 7208 | -6/Lower Caves | Encountered a Warlord checkpoint 7299 | -6/Lower Caves | A Derelict revealed a hidden shortcut to a safe place 7301 | -6/Lower Caves | Entered Zion 7331 | -6/Zion | Given A8's code to call for help 7336 | -6/Zion | Discovered new exit (range 16) 7398 | -6/Zion | Found Prototype Launcher 7398 | -6/Zion | Identified Gui. Missile Launcher 7441 | -6/Zion | System corruption cleaned by Quarantine Array 7658 | -6/Zion | Found Relay Coupler [Programmer] 7946 | -6/Zion | Build established: Hauler-Mutant 8390 | -6/Zion | Acquired unknown access codes intercepted by a Zionite 8409 | -6/Zion | Learned 4 Factory zone layouts 8497 | -6/Zion | Enhanced Grunt warped into view, answering call for help 8502 | -6/Zion | Enhanced Grunt warped into view, answering call for help 8504 | -6/Zion | Opened final containment barrier to the Deep Caves 8637 | -6/Zion | Discovered new exit (range 3) 8637 | -6/Zion | Saw the warning signs outside the Deep Caves entrance 8643 | -6/Zion | Identified exit to Deep Caves 8644 | -6/Zion | Entered Deep Caves 8644 | -6/Deep Caves | Accompanied by 2 allies 8850 | -6/Deep Caves | Attacked by Z-Imprinter 8866 | -6/Deep Caves | Allies destroyed Z-Imprinter 8931 | -6/Deep Caves | Z-Facility disabled 9013 | -6/Deep Caves | Core integrity fell below 20% 9042 | -6/Deep Caves | Found Prototype Protection 9042 | -6/Deep Caves | Identified Zio. Weapon Casing 9048 | -6/Deep Caves | Found Zio. Weapon Casing 9052 | -6/Deep Caves | Found Zio. Weapon Casing 9148 | -6/Deep Caves | Found Zio. Weapon Casing 9196 | -6/Deep Caves | Found Zio. Weapon Casing 9200 | -6/Deep Caves | Found Prototype Protection 9202 | -6/Deep Caves | Identified Zio. Heavy Carapace 9563 | -6/Deep Caves | Found Surveybot 24 Chip 9802 | -6/Deep Caves | Discovered new exit (range 7) 9811 | -6/Deep Caves | Identified exit to Proximity Caves 9812 | -6/Deep Caves | Entered Proximity Caves 10166 | -5/Proximity Caves | Discovered exit to Factory (range 7) 10176 | -5/Proximity Caves | Entered Factory 10176 | -5/Factory | Evolved 2 slots: Propulsion x1, Utility x1 10177 | -5/Factory | Identified exit to Extension 10178 | -5/Factory | Identified exit to Factory 10383 | -5/Factory | Discovered exit to Factory (range 16) 10542 | -5/Factory | Fabricated Cmb. Gravmag System? 10676 | -5/Factory | Garrison activated, responded to threat 10945 | -5/Factory | Build established: Mutant 11259 | -5/Factory | Destroyed 10 combat bots 11482 | -5/Factory | Discovered new exit (range 6) 11540 | -5/Factory | Identified exit to Upper Caves 11703 | -5/Factory | Repaired Cmb. Gravmag System? 11788 | -5/Factory | Repaired Cld. Aerolev Unit? 12112 | -5/Factory | Entered Extension 12128 | -5/Extension | Build established: Scavenger-Mutant 12163 | -5/Extension | Rescued a captive Derelict 12207 | -5/Extension | Rescued a captive Derelict 12207 | -5/Extension | Rescued a captive Derelict 12214 | -5/Extension | Rescued a captive Derelict 12215 | -5/Extension | Rescued a captive Derelict 12301 | -5/Extension | Rescued a captive Derelict 12463 | -5/Extension | Crushed by falling debris 12502 | -5/Extension | Rescued a captive Derelict 12502 | -5/Extension | Rescued a captive Derelict 12588 | -5/Extension | Build established: Commander-Mutant 12691 | -5/Extension | Rescued A7 12712 | -5/Extension | First assault squad dispatched 12909 | -5/Extension | Discovered exit to Factory (range 10) 12910 | -5/Extension | Discovered new exit (range 6) 12913 | -5/Extension | Identified exit to Cetus 12947 | -5/Extension | Entered Cetus 12947 | -5/Cetus | Accompanied by 18 allies 12952 | -5/Cetus | Acquired a Cetus Manufacturing Module code from A7 12955 | -5/Cetus | Spotted Cetus Guard 12955 | -5/Cetus | Spotted Cetus Guard 12956 | -5/Cetus | Spotted Cetus Guard 12958 | -5/Cetus | Spotted Cetus Guard 12960 | -5/Cetus | Allies destroyed Cetus Guard 12961 | -5/Cetus | Allies destroyed Cetus Guard 12965 | -5/Cetus | Destroyed Cetus Guard 12970 | -5/Cetus | Destroyed Cetus Guard 12999 | -5/Cetus | Started Cetus Manufacturing Module 13024 | -5/Cetus | Manufactured an Enhanced Grunt 13049 | -5/Cetus | Manufactured an Enhanced Grunt 13059 | -5/Cetus | Discovered new exit (range 15) 13074 | -5/Cetus | Manufactured an Enhanced Grunt 13087 | -5/Cetus | Spotted Cetus Guard 13088 | -5/Cetus | Spotted Cetus Guard 13089 | -5/Cetus | Spotted Cetus Guard 13092 | -5/Cetus | Discovered exit to Factory (range 16) 13093 | -5/Cetus | Spotted Cetus Guard 13096 | -5/Cetus | Destroyed Cetus Guard 13099 | -5/Cetus | Manufactured an Enhanced Grunt 13100 | -5/Cetus | Allies destroyed Cetus Guard 13100 | -5/Cetus | Allies destroyed Cetus Guard 13106 | -5/Cetus | Allies destroyed Cetus Guard 13107 | -5/Cetus | Met Revision 17 13124 | -5/Cetus | Manufactured an Enhanced Grunt 13143 | -5/Cetus | Destroyed A7 13147 | -5/Cetus | Extracted ID and sensor layout for unrecognized location from A7's data core 13156 | -5/Cetus | Identified exit to Archives 13156 | -5/Cetus | Cetus Manufacturing Module disabled 13179 | -5/Cetus | Entered Archives 13179 | -5/Archives | Accompanied by 17 allies 13193 | -5/Archives | Discovered new exit (range 16) 13207 | -5/Archives | Discovered new exit (range 16) 13233 | -5/Archives | Identified exit to Hub_04(d) 13261 | -5/Archives | Entered Hub_04(d) 13261 | -5/Hub_04(d) | Accompanied by 17 allies 13296 | -5/Hub_04(d) | Discovered exit to Factory (range 16) 13453 | -5/Hub_04(d) | Discovered exit to Factory (range 6) 13639 | -5/Hub_04(d) | Network Hub disabled 13645 | -5/Hub_04(d) | Entered Factory 13645 | -4/Factory | Evolved 2 slots: Utility x2 13831 | -4/Factory | Identified exit to Upper Caves 13951 | -4/Factory | Build established: Scavenger-Mutant 14106 | -4/Factory | Lost 5 parts (1p3u1w) 14117 | -4/Factory | Destroyed 9 combat bots 14184 | -4/Factory | Discovered new exit (range 13) 14656 | -4/Factory | Fabricated Cmb. Gravmag System? 14741 | -4/Factory | Fabricated Exp. Terrain Scanner? 14752 | -4/Factory | Local fabrication network quarantined 14771 | -4/Factory | System corruption reached 10% 14779 | -4/Factory | Core integrity fell below 50% 14895 | -4/Factory | First assault squad dispatched 14930 | -4/Factory | Repaired Imp. Utility Shielding? 15074 | -4/Factory | Entered Upper Caves 15088 | -4/Upper Caves | Identified exit to Upper Caves 15099 | -4/Upper Caves | Attracted the attention of an 0b10 checkpoint 15171 | -4/Upper Caves | Entered another Upper Caves area 15291 | -4/Upper Caves | Learned Research machine intel 15304 | -4/Upper Caves | Discovered new exit (range 5) 15308 | -4/Upper Caves | Identified exit to Warlord 15308 | -4/Upper Caves | Entered Warlord 15330 | -4/Warlord | System corruption cleaned by Quarantine Array 15412 | -4/Warlord | Found Prototype Energy Gun 15468 | -4/Warlord | Visited the Vortex Lab 15481 | -4/Warlord | Warlord's base attacked by MAIN.C 15534 | -4/Warlord | Met Warlord 15541 | -4/Warlord | Opened Warlord's prototype stash 15551 | -4/Warlord | Found Prototype Hackware 15551 | -4/Warlord | Identified System Mapper 15829 | -4/Warlord | Build established: Hacker-Mutant 15831 | -4/Warlord | Warlord forces counterattacked 15848 | -4/Warlord | Opened side exit 15941 | -4/Warlord | Discovered new exit (range 10) 15946 | -4/Warlord | Identified exit to Proximity Caves 15946 | -4/Warlord | Entered Proximity Caves 16116 | -3/Proximity Caves | Discovered new exit (range 7) 16123 | -3/Proximity Caves | Identified exit to Research 16139 | -3/Proximity Caves | Entered Research 16139 | -3/Research | Evolved 2 slots: Utility x1, Weapon x1 16140 | -3/Research | Loaded intel: 121 machine locations 16161 | -3/Research | Identified exit to Armory 16161 | -3/Research | Identified exit to Quarantine 16202 | -3/Research | Found Prototype Hackware 16238 | -3/Research | Repaired Cmb. Gravmag System 16275 | -3/Research | Repaired Exp. Transmission Jammer 16311 | -3/Research | Central database locked down 16721 | -3/Research | Build established: Wizard-Mutant 16735 | -3/Research | Repaired Cmb. Gravmag System? 16842 | -3/Research | Repaired Cmb. Gravmag System? 16966 | -3/Research | Found Quantum Capacitor 17189 | -3/Research | Lost 3 parts (1p1n1u) 17396 | -3/Research | System corruption reached 10% 17417 | -3/Research | Core integrity fell below 50% 17445 | -3/Research | Destroyed 12 combat bots 17449 | -3/Research | Lost 3 parts (1p1n1u) 17521 | -3/Research | Fabricated Exp. Terrain Scan Processor (x1) 17527 | -3/Research | Identified Exp. Hacking Suite 17578 | -3/Research | Fabricated Exp. Sensor Array (x1) 17635 | -3/Research | Spotted B-86 Titan 17733 | -3/Research | Entered Quarantine 17794 | -3/Quarantine | Found Alien Artifact 17794 | -3/Quarantine | Identified Phase Redirector 17821 | -3/Quarantine | Central database locked down 17827 | -3/Quarantine | Repaired Imp. Utility Shielding? 17861 | -3/Quarantine | Repaired Imp. Utility Shielding 17875 | -3/Quarantine | Repaired Lrg. Storage Unit 17930 | -3/Quarantine | Repaired Hvy. Hardcell Cannon? 17967 | -3/Quarantine | Cryocooling Duct disabled 17982 | -3/Quarantine | Ambient heat levels rising (+20) 17982 | -3/Quarantine | Non-combat units ordered to evacuate 18063 | -3/Quarantine | Repaired Cmb. Gravmag System 18113 | -3/Quarantine | Found Prototype Device 18116 | -3/Quarantine | Discovered new exit (range 11) 18179 | -3/Quarantine | Build established: Hacker-Mutant 18200 | -3/Quarantine | Identified EM Disruption Field 18218 | -3/Quarantine | Found Alien Impact Weapon 18418 | -3/Quarantine | Found Alien Artifact 18418 | -3/Quarantine | Identified Core Reset Matrix 18418 | -3/Quarantine | Identified Core Stripper 18418 | -3/Quarantine | Used Core Reset Matrix 18422 | -3/Quarantine | Detected hypermatrix surge 18422 | -3/Quarantine | Sensed 13 artifacts in vicinity 18441 | -3/Quarantine | Found Subatomic Replicator 18520 | -3/Quarantine | Discovered new exit (range 21) 18584 | -3/Quarantine | Found Sigix Broadsword 18711 | -3/Quarantine | Build established: Hacker-Scout 18789 | -3/Quarantine | Found Core Cannon 18845 | -3/Quarantine | Met incapacitated Sigix Warrior 18845 | -3/Quarantine | Lockdown squad dispatched 18856 | -3/Quarantine | Acquired the access code to the Sigix quarantine chamber 18858 | -3/Quarantine | Unlocked Sigix quarantine chamber 18860 | -3/Quarantine | Used Subatomic Replicator to replicate Sigix Containment Pod 18968 | -3/Quarantine | Identified exit to Research 18969 | -3/Quarantine | Entered Research 18969 | -2/Research | Warlord forces began assault on 0b10 18969 | -2/Research | Evolved 2 slots: Weapon x2 19079 | -2/Research | Research machine network offline 19093 | -2/Research | Discovered new exit (range 4) 19095 | -2/Research | Identified exit to Testing 19097 | -2/Research | Entered Testing 19127 | -2/Testing | Found Prototype Energy Gun 19127 | -2/Testing | Identified Warp Gun 19304 | -2/Testing | Garrison activated, responded to threat 19730 | -2/Testing | Central database locked down 19781 | -2/Testing | Found Prototype Protection 19824 | -2/Testing | Found System Mapper 19853 | -2/Testing | Identified SHELL Armor 19866 | -2/Testing | P-80 Master assimilated allied Director 9a 19915 | -2/Testing | Discovered new exit (range 21) 19958 | -2/Testing | Spotted PY-X3VATOXJP0 19962 | -2/Testing | Identified exit to Access 20180 | -2/Testing | Fabricated EM Dispersion Field (x1) 20199 | -2/Testing | Fabricated Cmb. Linear Gravjet (x2) 20239 | -2/Testing | Fabricated Mni. Smartbomb Launcher (x1) 20271 | -2/Testing | Fabricated Cmb. Linear Gravjet (x2) 20328 | -2/Testing | Found Prototype Hackware 20329 | -2/Testing | Identified Ghost Barrier 20364 | -2/Testing | Spotted Fortress 20403 | -2/Testing | Discovered new exit (range 6) 20404 | -2/Testing | Build established: Wizard-Mutant 20406 | -2/Testing | Identified exit to Section 7 20406 | -2/Testing | Entered Section 7 20407 | -2/Section 7 | Sensed 23 artifacts in vicinity 20579 | -2/Section 7 | Found Prototype Launcher 20579 | -2/Section 7 | Identified Point Singularity Launcher 20677 | -2/Section 7 | Discovered exit to Access (range 9) 20750 | -2/Section 7 | Spotted S7 Guard 20755 | -2/Section 7 | Found Integrated Singularity Reactor 20783 | -2/Section 7 | Installed Integrated Singularity Reactor, increased core energy generation (+2%) 20819 | -2/Section 7 | Found Integrity Redistributor 20859 | -2/Section 7 | Destroyed S7 Guard 20943 | -2/Section 7 | Found Integrated Reactor 20943 | -2/Section 7 | Installed Integrated Reactor, increased core energy generation (+2%) 21082 | -2/Section 7 | Found Hpw. Transdimensional Reconstructor 21083 | -2/Section 7 | Found Transdimensional Reconstructor 21096 | -2/Section 7 | Found Matter Drive 21124 | -2/Section 7 | Spotted B-99 Colossus 21147 | -2/Section 7 | Found Integrity Redistributor 21198 | -2/Section 7 | Found LRC Matter Compressor 21198 | -2/Section 7 | Installed LRC Matter Compressor, increased matter storage capacity (+125) 21202 | -2/Section 7 | Found LRC Storage 21202 | -2/Section 7 | Installed LRC Storage, increased inventory capacity (+2) 21204 | -2/Section 7 | Found LRC Boosters 21204 | -2/Section 7 | Installed LRC Boosters, increased mass support (+10) 21309 | -2/Section 7 | Activated Sigix Exoskeleton 21309 | -2/Section 7 | Received instructions from Sigix Warrior 21325 | -2/Section 7 | Identified Plasma Storm 21347 | -2/Section 7 | Destroyed B-99 Colossus 21352 | -2/Section 7 | Found Prototype Ballistic Gun 21353 | -2/Section 7 | Found Prototype Ballistic Gun 21372 | -2/Section 7 | Spotted Executioner 21372 | -2/Section 7 | Spotted Executioner 21438 | -2/Section 7 | Spotted Investigator 21439 | -2/Section 7 | Scanned by Researcher 21440 | -2/Section 7 | Intercept squad dispatched 21442 | -2/Section 7 | Spotted Tracker 21442 | -2/Section 7 | Spotted Tracker 21443 | -2/Section 7 | Spotted Combat Programmer 21450 | -2/Section 7 | Used Integrity Redistributor, redistributed integrity from core (-149) 21452 | -2/Section 7 | Warped through subspace 21470 | -2/Section 7 | Destroyed 7 combat bots 21501 | -2/Section 7 | Destroyed Tracker 21524 | -2/Section 7 | Warped through subspace 21535 | -2/Section 7 | Spotted Striker 21544 | -2/Section 7 | Entered Access 21544 | -1/Access | Accompanied by 1 ally 21544 | -1/Access | Evolved 2 slots: Utility x2 21623 | -1/Access | Spotted B-99 Colossus 21697 | -1/Access | Lost 4 parts (1p2u1w) 21790 | -1/Access | Intercept squad dispatched 21793 | -1/Access | Spotted Tracker 21795 | -1/Access | Spotted Tracker 21799 | -1/Access | Destroyed Tracker 21802 | -1/Access | Spotted Investigator 21812 | -1/Access | Spotted Striker 21814 | -1/Access | Spotted Executioner 21814 | -1/Access | Spotted Striker 21815 | -1/Access | Spotted Striker 21815 | -1/Access | Spotted Executioner 21815 | -1/Access | Spotted Executioner 21815 | -1/Access | Spotted Striker 21820 | -1/Access | Destroyed Investigator 21833 | -1/Access | Spotted Striker 21833 | -1/Access | Spotted Executioner 21834 | -1/Access | Used Integrity Redistributor, redistributed integrity from core (-207) 21835 | -1/Access | Core integrity fell below 50% 21842 | -1/Access | Emitted hypermatrix ping 21847 | -1/Access | Assembled emerged from beneath the floor 21847 | -1/Access | Spotted Executioner 21848 | -1/Access | Spotted Striker 21848 | -1/Access | Spotted Executioner 21848 | -1/Access | Spotted Executioner 21848 | -1/Access | Spotted Striker 21849 | -1/Access | Spotted Combat Programmer 21849 | -1/Access | Released all parts (8) 21852 | -1/Access | Destroyed 18 combat bots 21860 | -1/Access | Core integrity fell below 20% 21861 | -1/Access | System corruption reached 10% 21863 | -1/Access | Destroyed by G-73 Enforcer with Heavy Laser Last Messages --------------- 21857_ Slammed into Striker. 21858_ K-01 Serf collects debris. 21858_ Knocked back. 21858_ Stasis bubble strength at 26. 21858_ The unstable cave ceiling collapses. 21858_ Striker crushed by falling debris. 21858_ Striker destroyed. 21858_ EM Dispersion Field crushed. 21859_ Stasis bubble strength at 13. 21860_ Penetrated by Slug. 21860_ Penetrated by EMDS Slug. 21860_ Striker suffers critical hit. 21860_ Striker destroyed. 21860_ Striker suffers critical hit. 21860_ Striker knocked back. 21860_ Stasis bubble bursts. 21861_ Penetrated by Slug. 21861_ Slug penetrates Wall. 21861_ Penetrated by Slug. 21862_ Slug penetrates Wall. Map ----- +----------------------------------------------------+ | ?????????????????????????????????????????????????? | | ?????????????????????????????????????????????????? | | ?????????????????????????????????????????????????? | | ?????????????????????????????????????????????????? | | ?????????????????????????????????????????????????? | | ?????????????????????????????????????????????????? | | ?????????????????????????????????????????????????? | | ?????????????????????????????????????????????????? | | ?????????????????????????????????????????????????? | | ?????????????????????????????????????????????????? | | ???????????????????????? ???????????????????????? | | ???????????????????????? ???????????????????????? | | ????????????????????????k ???????????????????????? | | ???????????????????????# ???????????????????????? | | ???????????????????????# ???????????????????????? | | ???????????????????????# ???????????????????????? | | ???????????????????????# ???????????????????????? | | ???????????????????????# #??????????????????????? | | ???????????????????????# #??????????????????????? | | ???????????????????????# #??????????????????????? | | ??????????????????????## #??????????????????????? | | ??????????????????????#; #?????????+????????????? | | ???????????????????????; #??????? #????????????? | | ???????????????????????# #######""#?????????????? | | ???????????????????????# # #?????????????? | | ???????????????????????# @# #?????????????? | | ???????????????????????#R ; " #?????????????? | | ???????????????????????# / """ #?????????????? | | ???????????????????????# EEK """ #??? ?????????? | | ???????????????????????# # Kp " #?? #???????? | | ???????????????????????#gg#pKl% #?? #???????? | | ???????????????????????# #KE[mp #?? #???????? | | ???????????????????????# #!!=l]=e #?? #???????? | | ???????????????????????# ###E#%;Y##?# #???????? | | ??????????????????????? # %!#gbg ### ###?????? | | ???????????????????????# # %p#%bhY ## T"#?????? | | ???????????????????????# #### % %## ""#?????? | | ???????????????????????# # Y %gg# #???????? | | ???????????????????????# # m # ###?????? | | ???????????????????????? # !%= #?????? | | ???????????????????????? # % #?????? | | ???????????????????????# / %% /%% ######? | | ???????????????????????# # % "%/ | | ???????????????????????# # !% % % | ######? | | ???????????????????????# ?# "% % ]% #?????? | | ???????????????????????#??# #=%% #?????? | | ??????????????????????????#### # # " ##?????? | | ????????????????????????????? ! % * ######## | | ???????????????????????????? # "% | | ??????????????????????????? ###"" ##### | +----------------------------------------------------+ Best States ------------- Heat Dissipation 90 Coolant Potential 50 Energy Generation 53 Energy Capacity 1170 Matter Stores 316 Matter Capacity 425 Sight Range 23 Robot Scan Range 30 Terrain Scan Range 30 Terrain Scan Density 2010 Jamming Range 22 Cloak Strength 3 Armor Coverage 1600 Resistance: TH 30 Propulsion Shielding 66 Utility Shielding 66 Weapon Shielding 100 Weapon Cycling 20 Melee Speed Boost 50 Evasion (%) 69 Targeting Accuracy 8 Melee Accuracy 8 Core Analysis 6 Recoil Reduction 1 Offensive Hacking 69 Defensive Hacking 34 Item Schematics ----------------- Cmb. Linear Gravjet | -3/Quarantine | Hacked Exp. Force Field | -2/Testing | Hacked Adv. Reaction Control System | -2/Testing | Hacked EM Dispersion Field | -2/Testing | Hacked Mni. Smartbomb Launcher | -2/Testing | Hacked Mni. Fusion Reactor | -2/Testing | Hacked Exp. Utility Shielding | -2/Testing | Hacked Robot Schematics ------------------ None Fabricated ------------ Cmb. Gravmag System | x2 | -6/Factory Exp. Transmission Jammer | x1 | -6/Factory Cmb. Gravmag System | x2 | -5/Factory Cmb. Gravmag System | x2 | -4/Factory Exp. Terrain Scanner | x1 | -4/Factory Exp. Terrain Scan Processor | x1 | -3/Research Exp. Sensor Array | x1 | -3/Research EM Dispersion Field | x1 | -2/Testing Cmb. Linear Gravjet | x2 | -2/Testing Mni. Smartbomb Launcher | x1 | -2/Testing Cmb. Linear Gravjet | x2 | -2/Testing Alien Tech Used ----------------- Phase Redirector Core Reset Matrix Sigix Broadsword Subatomic Replicator Core Cannon Integrated Singularity Reactor Core Stripper Integrated Reactor LRC Matter Compressor LRC Storage LRC Boosters Integrity Redistributor High-powered Transdimensional Reconstructor Transdimensional Reconstructor Achievements -------------- None Challenges ------------ None Game ------ Seed PoweredAssembledShotgun Manual? 0 Play Time 04:46:22 Cumulative 860.9 hours Start 2020.08.03 @ 12:14:16 End 2020.08.04 @ 09:10:34 Sessions 13 Manual Loads 0 Difficulty Rogue Special Mode None Game No. 269 Rogue 269 Adventurer 0 Explorer 0 Win Type - Total 51 Types 39/1/3/3/3/1/1 Lore% 97 Gallery% 99 Achievement% 97 Wizard Run 0 Options --------- ASCII 0 Keyboard 1 Movement Numpad Keybinds 0 Fullscreen 1 Font 18/SmallcapsGlow Map View 76x50 Tactical HUD 1 Map Filters NONE Filters NONE Steam 1 RUN: 57d46971-3410-457d-96bb-e33bc4b2da9f